[Event "Titled Tuesday Blitz September 21 2021"]
[White "Tang, Andrew"]
[Black "Kollars, Dmitrij"]
[WhiteFideId "2059630"]
[BlackFideId "12909572"]
[WhiteElo "2588"]
[BlackElo "2584"]
[Result "1-0"]
[Round "06"]
[TimeControl "180+1"]
[Date "2021.09.21"]
[WhiteClock "0:00:06"]
[BlackClock "0:00:14"]

1. d4 {[%clk 0:03:00]}  d5 {[%clk 0:02:56]} 2. Nf3 {[%clk 0:03:00]}  Nf6 {[%clk 0:02:56]} 3. Bf4 {[%clk 0:03:00]}  c5 {[%clk 0:02:52]} 4. e3 {[%clk 0:03:00]}  Nc6 {[%clk 0:02:51]} 5. Nbd2 {[%clk 0:03:01]}  Bg4 {[%clk 0:02:50]} 6. c3 {[%clk 0:02:57]}  e6 {[%clk 0:02:48]} 7. Qb3 {[%clk 0:02:52]}  Qc8 {[%clk 0:02:47]} 8. h3 {[%clk 0:02:33]}  Bxf3 {[%clk 0:02:43]} 9. Nxf3 {[%clk 0:02:33]}  c4 {[%clk 0:02:38]} 10. Qc2 {[%clk 0:02:31]}  Be7 {[%clk 0:02:37]} 11. Be2 {[%clk 0:02:28]}  b5 {[%clk 0:02:36]} 12. O-O {[%clk 0:02:28]}  O-O {[%clk 0:02:35]} 13. Nd2 {[%clk 0:02:25]}  Qd7 {[%clk 0:02:23]} 14. e4 {[%clk 0:02:22]}  dxe4 {[%clk 0:02:16]} 15. Nxe4 {[%clk 0:02:23]}  Nxe4 {[%clk 0:01:58]} 16. Qxe4 {[%clk 0:02:24]}  Bd6 {[%clk 0:01:59]} 17. d5 {[%clk 0:01:49]}  Bxf4 {[%clk 0:01:34]} 18. dxc6 {[%clk 0:01:48]}  Qc7 {[%clk 0:01:34]} 19. a4 {[%clk 0:01:04]}  a6 {[%clk 0:01:34]} 20. b3 {[%clk 0:00:54]}  cxb3 {[%clk 0:01:28]} 21. axb5 {[%clk 0:00:54]}  axb5 {[%clk 0:01:29]} 22. Rab1 {[%clk 0:00:55]}  Ra3 {[%clk 0:01:17]} 23. Bxb5 {[%clk 0:00:52]}  Rb8 {[%clk 0:01:12]} 24. c4 {[%clk 0:00:48]}  Rd8 {[%clk 0:00:50]} 25. Qf3 {[%clk 0:00:46]}  Bh2+ {[%clk 0:00:28]} 26. Kh1 {[%clk 0:00:46]}  Qf4 {[%clk 0:00:28]} 27. Qc3 {[%clk 0:00:08]}  Qc7 {[%clk 0:00:28]} 28. g3 {[%clk 0:00:05]}  Bxg3 {[%clk 0:00:20]} 29. Qxg3 {[%clk 0:00:05]}  e5 {[%clk 0:00:18]} 30. Rxb3 {[%clk 0:00:05]}  Ra2 {[%clk 0:00:18]} 31. Rd3 {[%clk 0:00:04]}  f6 {[%clk 0:00:15]} 32. Rd7 {[%clk 0:00:04]}  Rxd7 {[%clk 0:00:13]} 33. cxd7 {[%clk 0:00:05]}  Qb7+ {[%clk 0:00:14]} 34. Qg2 {[%clk 0:00:06]}  Qb8 {[%clk 0:00:14]} 35. Qd5+ {[%clk 0:00:06]} 1-0


[Site "https://www.chess.com"]

[Event "Titled Tuesday Blitz September 21 2021"]
[White "Timmermans, Mark"]
[Black "Manukyan, Artyom"]
[WhiteFideId "1026399"]
[BlackFideId "13305786"]
[WhiteElo "2460"]
[BlackElo "2034"]
[Result "1-0"]
[Round "06"]
[TimeControl "180+1"]
[Date "2021.09.21"]
[WhiteClock "0:01:08"]
[BlackClock "0:00:09"]

1. b4 {[%clk 0:03:00]}  Nf6 {[%clk 0:02:57]} 2. Bb2 {[%clk 0:03:01]}  e6 {[%clk 0:02:57]} 3. b5 {[%clk 0:03:01]}  Be7 {[%clk 0:02:57]} 4. c4 {[%clk 0:03:01]}  d5 {[%clk 0:02:57]} 5. a4 {[%clk 0:03:02]}  dxc4 {[%clk 0:02:57]} 6. e3 {[%clk 0:03:03]}  b6 {[%clk 0:02:44]} 7. Bxc4 {[%clk 0:03:03]}  Bb7 {[%clk 0:02:45]} 8. Nf3 {[%clk 0:03:03]}  O-O {[%clk 0:02:44]} 9. O-O {[%clk 0:03:03]}  Nbd7 {[%clk 0:02:45]} 10. d4 {[%clk 0:03:03]}  a6 {[%clk 0:02:40]} 11. Nbd2 {[%clk 0:03:03]}  axb5 {[%clk 0:02:40]} 12. axb5 {[%clk 0:03:04]}  Ne4 {[%clk 0:02:19]} 13. Bd3 {[%clk 0:02:59]}  Ndf6 {[%clk 0:02:18]} 14. Ne5 {[%clk 0:02:51]}  Nxd2 {[%clk 0:02:16]} 15. Qxd2 {[%clk 0:02:51]}  Qd5 {[%clk 0:02:14]} 16. f3 {[%clk 0:02:51]}  Qb3 {[%clk 0:02:06]} 17. Bc3 {[%clk 0:02:39]}  Rxa1 {[%clk 0:01:57]} 18. Rxa1 {[%clk 0:02:40]}  Ra8 {[%clk 0:01:57]} 19. Rxa8+ {[%clk 0:02:35]}  Bxa8 {[%clk 0:01:58]} 20. e4 {[%clk 0:02:26]}  h6 {[%clk 0:01:39]} 21. Qc2 {[%clk 0:01:58]}  Qxc2 {[%clk 0:01:27]} 22. Bxc2 {[%clk 0:01:59]}  Kf8 {[%clk 0:01:24]} 23. Kf2 {[%clk 0:01:58]}  Bd6 {[%clk 0:01:16]} 24. Ke3 {[%clk 0:01:58]}  Bxe5 {[%clk 0:01:01]} 25. dxe5 {[%clk 0:01:59]}  Nd7 {[%clk 0:01:02]} 26. Bb4+ {[%clk 0:01:57]}  Kg8 {[%clk 0:01:02]} 27. f4 {[%clk 0:01:57]}  c6 {[%clk 0:01:02]} 28. bxc6 {[%clk 0:01:50]}  Bxc6 {[%clk 0:01:03]} 29. Kd4 {[%clk 0:01:50]}  g6 {[%clk 0:00:55]} 30. Bd3 {[%clk 0:01:48]}  Kg7 {[%clk 0:00:55]} 31. h4 {[%clk 0:01:44]}  h5 {[%clk 0:00:52]} 32. Be7 {[%clk 0:01:41]}  Kg8 {[%clk 0:00:43]} 33. Kc4 {[%clk 0:01:38]}  Kg7 {[%clk 0:00:37]} 34. Kb4 {[%clk 0:01:38]}  Kg8 {[%clk 0:00:30]} 35. Bb5 {[%clk 0:01:36]}  Nb8 {[%clk 0:00:03]} 36. Bd6 {[%clk 0:01:35]}  Bxb5 {[%clk 0:00:03]} 37. Kxb5 {[%clk 0:01:36]}  Nd7 {[%clk 0:00:04]} 38. Kc6 {[%clk 0:01:36]}  Nf8 {[%clk 0:00:02]} 39. Bxf8 {[%clk 0:01:32]}  Kxf8 {[%clk 0:00:03]} 40. Kxb6 {[%clk 0:01:32]}  Ke7 {[%clk 0:00:04]} 41. Kc7 {[%clk 0:01:30]}  Ke8 {[%clk 0:00:04]} 42. Kd6 {[%clk 0:01:31]}  Kd8 {[%clk 0:00:04]} 43. g3 {[%clk 0:01:25]}  Ke8 {[%clk 0:00:04]} 44. f5 {[%clk 0:01:23]}  gxf5 {[%clk 0:00:04]} 45. exf5 {[%clk 0:01:24]}  exf5 {[%clk 0:00:04]} 46. e6 {[%clk 0:01:20]}  Kf8 {[%clk 0:00:01]} 47. e7+ {[%clk 0:01:14]}  Ke8 {[%clk 0:00:01]} 48. Ke5 {[%clk 0:01:14]}  Kxe7 {[%clk 0:00:02]} 49. Kxf5 {[%clk 0:01:15]}  Kf8 {[%clk 0:00:01]} 50. Kg5 {[%clk 0:01:13]}  Kg7 {[%clk 0:00:02]} 51. Kxh5 {[%clk 0:01:13]}  f6 {[%clk 0:00:02]} 52. Kg4 {[%clk 0:01:11]}  Kg6 {[%clk 0:00:03]} 53. Kf4 {[%clk 0:01:12]}  Kg7 {[%clk 0:00:03]} 54. Kf5 {[%clk 0:01:07]}  Kf7 {[%clk 0:00:03]} 55. h5 {[%clk 0:01:08]}  Kg7 {[%clk 0:00:04]} 56. h6+ {[%clk 0:01:08]}  Kf7 {[%clk 0:00:04]} 57. h7 {[%clk 0:01:09]}  Kg7 {[%clk 0:00:04]} 58. h8=Q+ {[%clk 0:01:09]}  Kxh8 {[%clk 0:00:05]} 59. Kxf6 {[%clk 0:01:10]}  Kg8 {[%clk 0:00:06]} 60. g4 {[%clk 0:01:10]}  Kf8 {[%clk 0:00:07]} 61. g5 {[%clk 0:01:11]}  Kg8 {[%clk 0:00:08]} 62. Kg6 {[%clk 0:01:08]}  Kf8 {[%clk 0:00:09]} 63. Kh7 {[%clk 0:01:08]} 1-0


[Site "https://www.chess.com"]

[Event "Titled Tuesday Blitz September 21 2021"]
[White "Tsvetkov, Andrey"]
[Black "Kucuksari, Kaan"]
[WhiteFideId "34139360"]
[BlackFideId "6380166"]
[WhiteElo "2280"]
[BlackElo "2301"]
[Result "1-0"]
[Round "06"]
[TimeControl "180+1"]
[Date "2021.09.21"]
[WhiteClock "0:01:21"]
[BlackClock "0:00:17"]

1. d4 {[%clk 0:03:00]}  Nf6 {[%clk 0:02:59]} 2. c4 {[%clk 0:03:00]}  c6 {[%clk 0:02:59]} 3. Nf3 {[%clk 0:03:00]}  d5 {[%clk 0:03:00]} 4. g3 {[%clk 0:03:00]}  g6 {[%clk 0:02:58]} 5. Bg2 {[%clk 0:03:00]}  Bg7 {[%clk 0:02:59]} 6. b3 {[%clk 0:03:00]}  dxc4 {[%clk 0:02:56]} 7. bxc4 {[%clk 0:03:00]}  c5 {[%clk 0:02:56]} 8. Bb2 {[%clk 0:02:55]}  cxd4 {[%clk 0:02:51]} 9. O-O {[%clk 0:02:55]}  O-O {[%clk 0:02:48]} 10. Nxd4 {[%clk 0:02:55]}  Nfd7 {[%clk 0:02:42]} 11. Nd2 {[%clk 0:02:54]}  Nc5 {[%clk 0:02:41]} 12. N2b3 {[%clk 0:02:52]}  Nba6 {[%clk 0:02:41]} 13. e3 {[%clk 0:02:43]}  Bd7 {[%clk 0:02:30]} 14. Qe2 {[%clk 0:02:39]}  Qc8 {[%clk 0:02:21]} 15. Rfd1 {[%clk 0:02:37]}  Bh3 {[%clk 0:02:20]} 16. Bf3 {[%clk 0:02:36]}  Na4 {[%clk 0:02:05]} 17. Na5 {[%clk 0:02:22]}  Nxb2 {[%clk 0:02:00]} 18. Qxb2 {[%clk 0:02:07]}  Nc5 {[%clk 0:01:59]} 19. Bxb7 {[%clk 0:01:59]}  Nxb7 {[%clk 0:01:29]} 20. Qxb7 {[%clk 0:02:00]}  Qc5 {[%clk 0:01:08]} 21. Nac6 {[%clk 0:01:54]}  Bf6 {[%clk 0:01:04]} 22. Qb5 {[%clk 0:01:47]}  Qa3 {[%clk 0:01:00]} 23. Rab1 {[%clk 0:01:43]}  Qxa2 {[%clk 0:00:53]} 24. Ra1 {[%clk 0:01:43]}  a6 {[%clk 0:00:48]} 25. Qb4 {[%clk 0:01:31]}  a5 {[%clk 0:00:34]} 26. Qb5 {[%clk 0:01:31]}  Qxa1 {[%clk 0:00:25]} 27. Rxa1 {[%clk 0:01:32]}  Bd7 {[%clk 0:00:25]} 28. Nxe7+ {[%clk 0:01:31]}  Bxe7 {[%clk 0:00:24]} 29. Qxd7 {[%clk 0:01:32]}  Bf6 {[%clk 0:00:25]} 30. Qc6 {[%clk 0:01:31]}  Bg7 {[%clk 0:00:25]} 31. Ra4 {[%clk 0:01:27]}  h5 {[%clk 0:00:23]} 32. Qd5 {[%clk 0:01:26]}  Rfd8 {[%clk 0:00:23]} 33. Rxa5 {[%clk 0:01:26]}  Rac8 {[%clk 0:00:19]} 34. Qb5 {[%clk 0:01:19]}  Rb8 {[%clk 0:00:19]} 35. Qa4 {[%clk 0:01:19]}  Rb1+ {[%clk 0:00:19]} 36. Kg2 {[%clk 0:01:20]}  Rc1 {[%clk 0:00:17]} 37. Ra8 {[%clk 0:01:20]}  Rxa8 {[%clk 0:00:16]} 38. Qxa8+ {[%clk 0:01:20]}  Kh7 {[%clk 0:00:17]} 39. Qd5 {[%clk 0:01:21]} 1-0


[Site "https://www.chess.com"]

[Event "Titled Tuesday Blitz September 21 2021"]
[White "Turzo, Attila"]
[Black "Solon, Nathan"]
[WhiteFideId "704954"]
[BlackFideId "2017229"]
[WhiteElo "2488"]
[BlackElo "2688"]
[Result "0-1"]
[Round "06"]
[TimeControl "180+1"]
[Date "2021.09.21"]
[WhiteClock "0:00:04"]
[BlackClock "0:00:18"]

1. d4 {[%clk 0:03:00]}  Nf6 {[%clk 0:02:59]} 2. c4 {[%clk 0:03:00]}  e6 {[%clk 0:03:00]} 3. Nf3 {[%clk 0:03:00]}  d5 {[%clk 0:03:00]} 4. Nc3 {[%clk 0:03:00]}  Bb4 {[%clk 0:03:00]} 5. cxd5 {[%clk 0:02:53]}  exd5 {[%clk 0:03:00]} 6. Bg5 {[%clk 0:02:53]}  h6 {[%clk 0:03:00]} 7. Bh4 {[%clk 0:02:45]}  O-O {[%clk 0:03:00]} 8. Qc2 {[%clk 0:02:44]}  c5 {[%clk 0:02:53]} 9. e3 {[%clk 0:02:43]}  Nc6 {[%clk 0:02:37]} 10. O-O-O {[%clk 0:02:25]}  Bxc3 {[%clk 0:02:18]} 11. Qxc3 {[%clk 0:02:22]}  c4 {[%clk 0:02:11]} 12. Kb1 {[%clk 0:02:08]}  g5 {[%clk 0:02:03]} 13. Bg3 {[%clk 0:02:07]}  Ne4 {[%clk 0:02:03]} 14. Qe1 {[%clk 0:01:59]}  Bf5 {[%clk 0:02:01]} 15. Ka1 {[%clk 0:01:54]}  Qb6 {[%clk 0:01:48]} 16. Rc1 {[%clk 0:01:41]}  Nb4 {[%clk 0:01:44]} 17. Qd1 {[%clk 0:01:36]}  Qa5 {[%clk 0:01:40]} 18. a3 {[%clk 0:01:34]}  Rac8 {[%clk 0:01:30]} 19. Nd2 {[%clk 0:01:05]}  c3 {[%clk 0:01:19]} 20. Nxe4 {[%clk 0:00:59]}  Bxe4 {[%clk 0:01:14]} 21. Qb3 {[%clk 0:00:57]}  cxb2+ {[%clk 0:01:10]} 22. Qxb2 {[%clk 0:00:47]}  Rxc1+ {[%clk 0:01:08]} 23. Qxc1 {[%clk 0:00:48]}  Nc2+ {[%clk 0:01:04]} 24. Ka2 {[%clk 0:00:44]}  Rc8 {[%clk 0:00:58]} 25. Bd6 {[%clk 0:00:32]}  Rc6 {[%clk 0:00:49]} 26. f3 {[%clk 0:00:24]}  Bg6 {[%clk 0:00:47]} 27. e4 {[%clk 0:00:22]}  Nxd4 {[%clk 0:00:39]} 28. Qe3 {[%clk 0:00:14]}  Nc2 {[%clk 0:00:22]} 29. Qb3 {[%clk 0:00:04]}  dxe4 {[%clk 0:00:18]} 0-1


[Site "https://www.chess.com"]

[Event "Titled Tuesday Blitz September 21 2021"]
[White "Vakhlamov, Igor L."]
[Black "Nazaretyan, Tigran"]
[WhiteFideId "24126748"]
[BlackFideId "24162345"]
[WhiteElo "2416"]
[BlackElo "2212"]
[Result "1-0"]
[Round "06"]
[TimeControl "180+1"]
[Date "2021.09.21"]
[WhiteClock "0:00:23"]
[BlackClock "0:00:20"]

1. e4 {[%clk 0:03:00]}  c5 {[%clk 0:02:58]} 2. Nf3 {[%clk 0:03:01]}  Nc6 {[%clk 0:02:58]} 3. Nc3 {[%clk 0:03:01]}  d6 {[%clk 0:02:57]} 4. Bb5 {[%clk 0:03:01]}  e5 {[%clk 0:02:56]} 5. O-O {[%clk 0:02:58]}  g6 {[%clk 0:02:53]} 6. Nd5 {[%clk 0:02:57]}  Bg7 {[%clk 0:02:52]} 7. d3 {[%clk 0:02:55]}  a6 {[%clk 0:02:47]} 8. Ba4 {[%clk 0:02:52]}  b5 {[%clk 0:02:46]} 9. Bb3 {[%clk 0:02:52]}  Nce7 {[%clk 0:02:45]} 10. Ng5 {[%clk 0:02:45]}  Nh6 {[%clk 0:02:30]} 11. f4 {[%clk 0:02:39]}  exf4 {[%clk 0:02:19]} 12. Bxf4 {[%clk 0:02:40]}  O-O {[%clk 0:02:18]} 13. c3 {[%clk 0:02:32]}  Ra7 {[%clk 0:02:17]} 14. a4 {[%clk 0:02:27]}  b4 {[%clk 0:02:08]} 15. Qd2 {[%clk 0:02:22]}  Nxd5 {[%clk 0:02:06]} 16. Bxd5 {[%clk 0:02:19]}  bxc3 {[%clk 0:02:06]} 17. bxc3 {[%clk 0:02:19]}  Ng4 {[%clk 0:01:49]} 18. Rab1 {[%clk 0:02:09]}  h6 {[%clk 0:01:42]} 19. Nf3 {[%clk 0:02:06]}  g5 {[%clk 0:01:38]} 20. Bg3 {[%clk 0:02:01]}  Be6 {[%clk 0:01:38]} 21. c4 {[%clk 0:01:44]}  Bxd5 {[%clk 0:01:36]} 22. cxd5 {[%clk 0:01:45]}  f5 {[%clk 0:01:32]} 23. h3 {[%clk 0:01:35]}  f4 {[%clk 0:01:24]} 24. hxg4 {[%clk 0:01:27]}  fxg3 {[%clk 0:01:24]} 25. Qe1 {[%clk 0:01:24]}  Qd7 {[%clk 0:01:17]} 26. Qxg3 {[%clk 0:01:23]}  Rf4 {[%clk 0:01:15]} 27. a5 {[%clk 0:01:20]}  Rxg4 {[%clk 0:01:11]} 28. Qh3 {[%clk 0:01:18]}  Rf4 {[%clk 0:00:55]} 29. Rb8+ {[%clk 0:01:17]}  Bf8 {[%clk 0:00:55]} 30. Qxh6 {[%clk 0:00:57]}  Qg7 {[%clk 0:00:39]} 31. Qxg5 {[%clk 0:00:47]}  Raf7 {[%clk 0:00:25]} 32. Qxg7+ {[%clk 0:00:43]}  Kxg7 {[%clk 0:00:25]} 33. Rb6 {[%clk 0:00:32]}  c4 {[%clk 0:00:24]} 34. dxc4 {[%clk 0:00:30]}  Rxe4 {[%clk 0:00:24]} 35. Ng5 {[%clk 0:00:20]}  Rxf1+ {[%clk 0:00:23]} 36. Kxf1 {[%clk 0:00:21]}  Rxc4 {[%clk 0:00:24]} 37. Ne6+ {[%clk 0:00:22]}  Kf7 {[%clk 0:00:24]} 38. Rxa6 {[%clk 0:00:21]}  Rc1+ {[%clk 0:00:22]} 39. Ke2 {[%clk 0:00:21]}  Rc2+ {[%clk 0:00:22]} 40. Kf3 {[%clk 0:00:22]}  Rc3+ {[%clk 0:00:23]} 41. Ke4 {[%clk 0:00:21]}  Rg3 {[%clk 0:00:22]} 42. Ra7+ {[%clk 0:00:20]}  Be7 {[%clk 0:00:22]} 43. Nd8+ {[%clk 0:00:18]}  Kf6 {[%clk 0:00:22]} 44. Nc6 {[%clk 0:00:18]}  Bf8 {[%clk 0:00:22]} 45. a6 {[%clk 0:00:19]}  Rxg2 {[%clk 0:00:22]} 46. Ra8 {[%clk 0:00:19]}  Bh6 {[%clk 0:00:21]} 47. a7 {[%clk 0:00:19]}  Ra2 {[%clk 0:00:22]} 48. Rh8 {[%clk 0:00:19]}  Bg7 {[%clk 0:00:21]} 49. a8=Q {[%clk 0:00:18]}  Rxa8 {[%clk 0:00:19]} 50. Rxa8 {[%clk 0:00:19]}  Bh6 {[%clk 0:00:19]} 51. Re8 {[%clk 0:00:19]}  Bf8 {[%clk 0:00:19]} 52. Re6+ {[%clk 0:00:20]}  Kf7 {[%clk 0:00:19]} 53. Nd4 {[%clk 0:00:21]}  Be7 {[%clk 0:00:19]} 54. Nf5 {[%clk 0:00:22]}  Bf8 {[%clk 0:00:20]} 55. Nxd6+ {[%clk 0:00:22]}  Kg7 {[%clk 0:00:20]} 56. Nf5+ {[%clk 0:00:22]}  Kf7 {[%clk 0:00:20]} 57. Nd4 {[%clk 0:00:22]}  Kg7 {[%clk 0:00:20]} 58. Nc6 {[%clk 0:00:23]}  Kf7 {[%clk 0:00:21]} 59. Ne5+ {[%clk 0:00:24]}  Kg7 {[%clk 0:00:21]} 60. Kf5 {[%clk 0:00:25]}  Ba3 {[%clk 0:00:20]} 61. d6 {[%clk 0:00:25]}  Bxd6 {[%clk 0:00:20]} 62. Rxd6 {[%clk 0:00:26]}  Kf8 {[%clk 0:00:19]} 63. Kf6 {[%clk 0:00:23]}  Ke8 {[%clk 0:00:20]} 64. Rd5 {[%clk 0:00:23]} 1-0


[Site "https://www.chess.com"]

[Event "Titled Tuesday Blitz September 21 2021"]
[White "Williams, Simon K"]
[Black "Melikhov, Evgeny V."]
[WhiteFideId "404454"]
[BlackFideId "4122046"]
[WhiteElo "2468"]
[BlackElo "1927"]
[Result "1-0"]
[Round "06"]
[TimeControl "180+1"]
[Date "2021.09.21"]
[WhiteClock "0:00:19"]
[BlackClock "0:00:22"]

1. e4 {[%clk 0:03:00]}  e5 {[%clk 0:02:59]} 2. f4 {[%clk 0:03:00]}  Bc5 {[%clk 0:02:58]} 3. Nf3 {[%clk 0:02:59]}  d6 {[%clk 0:02:57]} 4. Nc3 {[%clk 0:02:58]}  Nf6 {[%clk 0:02:49]} 5. Bc4 {[%clk 0:02:57]}  Nc6 {[%clk 0:02:46]} 6. d3 {[%clk 0:02:57]}  O-O {[%clk 0:02:44]} 7. Na4 {[%clk 0:02:53]}  Bb6 {[%clk 0:02:44]} 8. Nxb6 {[%clk 0:02:52]}  axb6 {[%clk 0:02:44]} 9. O-O {[%clk 0:02:49]}  Bg4 {[%clk 0:02:41]} 10. h3 {[%clk 0:02:46]}  Bxf3 {[%clk 0:02:41]} 11. Qxf3 {[%clk 0:02:45]}  Nd4 {[%clk 0:02:42]} 12. Qf2 {[%clk 0:02:45]}  b5 {[%clk 0:02:41]} 13. Bb3 {[%clk 0:02:31]}  Nxb3 {[%clk 0:02:41]} 14. cxb3 {[%clk 0:02:31]}  exf4 {[%clk 0:02:35]} 15. Bxf4 {[%clk 0:02:30]}  Nd7 {[%clk 0:02:34]} 16. d4 {[%clk 0:02:23]}  Qe7 {[%clk 0:02:31]} 17. Rfe1 {[%clk 0:02:15]}  Rfe8 {[%clk 0:02:11]} 18. a3 {[%clk 0:02:15]}  c5 {[%clk 0:02:07]} 19. Rad1 {[%clk 0:02:13]}  c4 {[%clk 0:02:06]} 20. bxc4 {[%clk 0:02:12]}  bxc4 {[%clk 0:02:06]} 21. Qg3 {[%clk 0:02:07]}  Ra6 {[%clk 0:02:00]} 22. Qc3 {[%clk 0:01:56]}  b5 {[%clk 0:01:59]} 23. Qb4 {[%clk 0:01:49]}  Rb6 {[%clk 0:01:58]} 24. b3 {[%clk 0:01:36]}  cxb3 {[%clk 0:01:46]} 25. Qxb3 {[%clk 0:01:36]}  Nf6 {[%clk 0:01:32]} 26. Bg5 {[%clk 0:01:20]}  h6 {[%clk 0:01:31]} 27. Bxf6 {[%clk 0:01:20]}  Qxf6 {[%clk 0:01:31]} 28. Qd5 {[%clk 0:01:17]}  Qe6 {[%clk 0:01:28]} 29. Qxe6 {[%clk 0:01:13]}  Rxe6 {[%clk 0:01:19]} 30. Rb1 {[%clk 0:01:08]}  Ra6 {[%clk 0:01:16]} 31. Rxb5 {[%clk 0:00:56]}  Rxa3 {[%clk 0:01:16]} 32. d5 {[%clk 0:00:30]}  Re5 {[%clk 0:01:13]} 33. Rb6 {[%clk 0:00:28]}  Ra4 {[%clk 0:01:09]} 34. Rxd6 {[%clk 0:00:28]}  Raxe4 {[%clk 0:01:09]} 35. Rxe4 {[%clk 0:00:28]}  Rxe4 {[%clk 0:01:10]} 36. Kf2 {[%clk 0:00:27]}  f5 {[%clk 0:01:06]} 37. Rd7 {[%clk 0:00:24]}  f4 {[%clk 0:01:01]} 38. Kf3 {[%clk 0:00:23]}  Rd4 {[%clk 0:01:01]} 39. h4 {[%clk 0:00:23]}  g5 {[%clk 0:01:00]} 40. h5 {[%clk 0:00:23]}  Kh8 {[%clk 0:00:58]} 41. Kg4 {[%clk 0:00:23]}  Kg8 {[%clk 0:00:55]} 42. Kf5 {[%clk 0:00:24]}  Kf8 {[%clk 0:00:53]} 43. Ke5 {[%clk 0:00:21]}  Rd2 {[%clk 0:00:52]} 44. Rh7 {[%clk 0:00:19]}  g4 {[%clk 0:00:49]} 45. Rxh6 {[%clk 0:00:18]}  f3 {[%clk 0:00:50]} 46. gxf3 {[%clk 0:00:18]}  gxf3 {[%clk 0:00:50]} 47. Rf6+ {[%clk 0:00:19]}  Ke7 {[%clk 0:00:49]} 48. Rxf3 {[%clk 0:00:19]}  Rh2 {[%clk 0:00:49]} 49. Rf5 {[%clk 0:00:18]}  Re2+ {[%clk 0:00:48]} 50. Kf4 {[%clk 0:00:18]}  Kd6 {[%clk 0:00:46]} 51. Kg5 {[%clk 0:00:18]}  Rg2+ {[%clk 0:00:46]} 52. Kf6 {[%clk 0:00:19]}  Rh2 {[%clk 0:00:45]} 53. Kg6 {[%clk 0:00:19]}  Rg2+ {[%clk 0:00:45]} 54. Rg5 {[%clk 0:00:19]}  Rh2 {[%clk 0:00:26]} 55. h6 {[%clk 0:00:19]}  Ke7 {[%clk 0:00:27]} 56. Kg7 {[%clk 0:00:19]}  Rf2 {[%clk 0:00:25]} 57. h7 {[%clk 0:00:18]}  Rf7+ {[%clk 0:00:24]} 58. Kh6 {[%clk 0:00:18]}  Rf6+ {[%clk 0:00:22]} 59. Rg6 {[%clk 0:00:19]} 1-0


[Site "https://www.chess.com"]

[Event "Titled Tuesday Blitz September 21 2021"]
[White "Yaksin, Oleg"]
[Black "Swapnil, S. Dhopade"]
[WhiteFideId "24105880"]
[BlackFideId "5019184"]
[WhiteElo "2310"]
[BlackElo "2402"]
[Result "1/2-1/2"]
[Round "06"]
[TimeControl "180+1"]
[Date "2021.09.21"]
[WhiteClock "0:00:06"]
[BlackClock "0:00:04"]

1. d4 {[%clk 0:02:51]}  Nf6 {[%clk 0:02:59]} 2. c4 {[%clk 0:02:51]}  c5 {[%clk 0:02:59]} 3. d5 {[%clk 0:02:51]}  b5 {[%clk 0:03:00]} 4. cxb5 {[%clk 0:02:51]}  a6 {[%clk 0:03:00]} 5. b6 {[%clk 0:02:46]}  e6 {[%clk 0:03:00]} 6. Nc3 {[%clk 0:02:44]}  Nxd5 {[%clk 0:03:00]} 7. Nxd5 {[%clk 0:02:44]}  exd5 {[%clk 0:03:01]} 8. Qxd5 {[%clk 0:02:44]}  Nc6 {[%clk 0:03:02]} 9. Nf3 {[%clk 0:02:38]}  Rb8 {[%clk 0:02:52]} 10. Bd2 {[%clk 0:02:33]}  Rxb6 {[%clk 0:02:43]} 11. e4 {[%clk 0:02:19]}  Be7 {[%clk 0:02:35]} 12. Bc4 {[%clk 0:02:12]}  O-O {[%clk 0:02:35]} 13. O-O {[%clk 0:02:10]}  d6 {[%clk 0:02:30]} 14. b3 {[%clk 0:02:03]}  Be6 {[%clk 0:02:24]} 15. Qd3 {[%clk 0:02:02]}  Bf6 {[%clk 0:02:09]} 16. Rac1 {[%clk 0:01:47]}  a5 {[%clk 0:01:39]} 17. Bf4 {[%clk 0:01:23]}  Nd4 {[%clk 0:01:22]} 18. Nxd4 {[%clk 0:01:22]}  Bxd4 {[%clk 0:01:23]} 19. Be3 {[%clk 0:01:21]}  Bxe3 {[%clk 0:01:00]} 20. Qxe3 {[%clk 0:01:20]}  Re8 {[%clk 0:00:47]} 21. Rfd1 {[%clk 0:01:18]}  Qa8 {[%clk 0:00:44]} 22. Qd3 {[%clk 0:00:55]}  g6 {[%clk 0:00:40]} 23. f3 {[%clk 0:00:54]}  a4 {[%clk 0:00:39]} 24. Bxe6 {[%clk 0:00:46]}  Rxe6 {[%clk 0:00:34]} 25. Rc3 {[%clk 0:00:37]}  axb3 {[%clk 0:00:31]} 26. axb3 {[%clk 0:00:36]}  Qa2 {[%clk 0:00:27]} 27. Qd2 {[%clk 0:00:34]}  Qxd2 {[%clk 0:00:16]} 28. Rxd2 {[%clk 0:00:34]}  Kf8 {[%clk 0:00:16]} 29. Kf2 {[%clk 0:00:34]}  Re7 {[%clk 0:00:15]} 30. Rcd3 {[%clk 0:00:31]}  Re6 {[%clk 0:00:15]} 31. g4 {[%clk 0:00:30]}  g5 {[%clk 0:00:15]} 32. Rc2 {[%clk 0:00:28]}  Ke7 {[%clk 0:00:15]} 33. Rcc3 {[%clk 0:00:28]}  Kf6 {[%clk 0:00:15]} 34. Rd5 {[%clk 0:00:28]}  h6 {[%clk 0:00:14]} 35. Ke3 {[%clk 0:00:28]}  Re7 {[%clk 0:00:15]} 36. h3 {[%clk 0:00:28]}  Reb7 {[%clk 0:00:15]} 37. Rdd3 {[%clk 0:00:19]}  Ke6 {[%clk 0:00:15]} 38. Kd2 {[%clk 0:00:18]}  Ra7 {[%clk 0:00:16]} 39. Ke3 {[%clk 0:00:17]}  Ra1 {[%clk 0:00:14]} 40. Rd5 {[%clk 0:00:16]}  f6 {[%clk 0:00:14]} 41. Kf2 {[%clk 0:00:14]}  Rb1 {[%clk 0:00:14]} 42. Rdd3 {[%clk 0:00:14]}  Rb2+ {[%clk 0:00:15]} 43. Kg3 {[%clk 0:00:14]}  Ra6 {[%clk 0:00:16]} 44. f4 {[%clk 0:00:10]}  Raa2 {[%clk 0:00:14]} 45. fxg5 {[%clk 0:00:04]}  hxg5 {[%clk 0:00:14]} 46. Rd5 {[%clk 0:00:04]}  Rg2+ {[%clk 0:00:13]} 47. Kf3 {[%clk 0:00:05]}  Raf2+ {[%clk 0:00:14]} 48. Ke3 {[%clk 0:00:05]}  Re2+ {[%clk 0:00:12]} 49. Kf3 {[%clk 0:00:05]}  Ref2+ {[%clk 0:00:12]} 50. Ke3 {[%clk 0:00:06]}  Rb2 {[%clk 0:00:10]} 51. Kf3 {[%clk 0:00:05]}  Rh2 {[%clk 0:00:07]} 52. Kg3 {[%clk 0:00:05]}  Rhe2 {[%clk 0:00:07]} 53. Kf3 {[%clk 0:00:05]}  Rf2+ {[%clk 0:00:05]} 54. Kg3 {[%clk 0:00:06]}  Rg2+ {[%clk 0:00:04]} 55. Kf3 {[%clk 0:00:06]}  Rbf2+ {[%clk 0:00:04]} 1/2-1/2


[Site "https://www.chess.com"]